[Event "44th Open Sitges 2018"]
[Site "Sitges"]
[Date "2018.07.27"]
[Round "7"]
[White "Lobato, Lavin Alvaro"]
[Black "Todts, Benny"]
[Result "1-0"]
[ECO "B22"]
[WhiteElo "1923"]
[BlackElo "1938"]
[Annotator "NA"]
[PlyCount "39"]
[EventDate "2018.07.22"]
[EventType "swiss"]
[EventCountry "ESP"]
[SourceTitle "playchess.com"]
[Source "ChessBase"]
[SourceQuality "1"]
[TimeControl "40/5400+30:1800+30"]

1. e4 {[%emt 0:00:00]} c5 {[%emt 0:00:19]} 2. Nf3 {[%emt 0:00:04]} Nc6 {[%emt 0:00:30]} 3. d4 {[%emt 0:00:30]} cxd4 {[%emt 0:00:30]} 4. c3 {[%emt 24:07:55]} d5 {[%emt 0:00:05]} 5. exd5 {[%emt 0:00:05]} Qxd5 {[%emt 0:00:06]} 6. cxd4 {[%emt 0:00:06]} Bg4 {[%emt 0:00:06]} 7. Be2 {[%emt 0:00:07]} O-O-O {[%emt 0:00:00]} 8. Nc3 {[%emt 0:04:37]} Qf5 9. Be3 {[%emt 0:15:32]} e5 10. d5 {[%emt 0:29:35]} Nf6 11. O-O {[%emt 0:30:36]} Bb4 {[%emt 0:02:45]} 12. Qb3 {[%emt 0:10:36]} Nxd5 {[%emt 0:01:04]} 13. Nxd5 {[%emt 0:02:34]} e4 {[%emt 0:00:31]} 14. Nd4 {[%emt 0:04:25]} Nxd4 {[%emt 0:00:19]} 15. Bxg4 {[%emt 0:08:32]} Qxg4 {[%emt 0:00:11]} 16. Bxd4 {[%emt 0:00:52]} Bd6 {[%emt 0:08:56]} 17. Rac1+ {[%emt 0:00:19]} Kb8 {[%emt 0:00:24]} 18. Bxa7+ {[%emt 0:00:35]} Kxa7 {[%emt 0:00:53]} 19. Qa4+ {[%emt 0:00:12]} Kb8 {[%emt 0:01:05]} 20. Nb6 1-0

[Event "44th Open Sitges 2018"]
[Site "Sitges"]
[Date "2018.07.28"]
[Round "8"]
[White "Aguero Jimenez, Luis Lazaro"]
[Black "Grafl, Florian"]
[Result "1-0"]
[ECO "C44"]
[WhiteElo "2473"]
[BlackElo "2364"]
[Annotator "ChessBase"]
[PlyCount "79"]
[EventDate "2018.07.22"]
[EventType "swiss"]
[EventCountry "ESP"]
[SourceTitle "playchess.com"]
[Source "ChessBase"]
[SourceQuality "1"]
[TimeControl "40/5400+30:1800+30"]

1. e4 {[%emt 0:00:02]} Nc6 {[%emt 0:00:04]} 2. Nf3 {[%emt 0:00:04]} d6 {[%emt 0:00:03]} 3. d4 {[%emt 0:00:20]} Nf6 {[%emt 0:00:07]} 4. Bd3 {[%emt 0:01:49]} e5 {[%emt 0:04:46]} 5. c3 {[%emt 0:00:05]} Bg4 {[%emt 0:04:44]} 6. Qa4 {[%emt 0:05:10]} Bxf3 {[%emt 0:03:04]} 7. gxf3 {[%emt 0:00:06]} Nd7 {[%emt 0:00:44]} 8. Bb5 {[%emt 0:01:23]} Ne7 {[%emt 0:05:28]} 9. Bg5 {[%emt 0:03:27]} a6 {[%emt 0:02:38]} 10. Bd3 {[%emt 0:00:24]} h6 {[%emt 0:15:24]} 11. Be3 {[%emt 0:00:14]} g5 {[%emt 0:00:05]} 12. Qb3 {[%emt 0:02:55]} Bg7 {[%emt 0:05:44]} 13. h4 {[%emt 0:03:52]} exd4 {[%emt 0:14:41]} 14. cxd4 {[%emt 0:00:06]} Nc6 {[%emt 0:00:22]} 15. Bc4 {[%emt 0:11:12]} Nxd4 {[%emt 0:17:52]} 16. Bxf7+ {[%emt 0:00:57]} Kf8 {[%emt 0:00:02]} 17. Bxd4 {[%emt 0:00:07]} Bxd4 {[%emt 0:00:03]} 18. Bh5 {[%emt 0:00:08]} Qf6 {[%emt 0:02:01]} 19. Nc3 {[%emt 0:00:05]} Nc5 {[%emt 0:01:20]} 20. Qc2 {[%emt 0:00:02]} Bxc3+ {[%emt 0:00:12]} 21. bxc3 {[%emt 0:00:05]} Ke7 {[%emt 0:04:31]} 22. O-O-O {[%emt 0:00:27]} Nd7 {[%emt 0:04:31]} 23. Qb3 {[%emt 0:03:02]} b5 {[%emt 0:00:06]} 24. e5 {[%emt 0:05:46]} Nxe5 {[%emt 0:00:31]} 25. Rhe1 {[%emt 0:00:06]} Rhd8 {[%emt 0:03:42]} 26. Re4 {[%emt 0:03:55]} Kd7 {[%emt 0:02:10]} 27. Qd5 {[%emt 0:01:15]} Re8 {[%emt 0:00:35]} 28. f4 {[%emt 0:02:37]} gxf4 {[%emt 0:01:48]} 29. Rg1 {[%emt 0:03:00]} c6 {[%emt 0:00:51]} 30. Bxe8+ {[%emt 0:00:17]} Rxe8 {[%emt 0:00:03]} 31. Qd4 {[%emt 0:00:23]} Re7 {[%emt 0:03:24]} 32. Qa7+ {[%emt 0:04:20]} Ke6 {[%emt 0:00:05]} 33. Qxa6 {[%emt 0:03:40]} Kd5 {[%emt 0:00:54]} 34. Rd4+ {[%emt 0:00:11]} Ke6 {[%emt 0:00:20]} 35. Qc8+ {[%emt 0:00:01]} Rd7 {[%emt 0:00:16]} 36. Rg8 {[%emt 0:04:47]} Qxh4 {[%emt 0:01:01]} 37. Re8+ {[%emt 0:00:47]} Kf6 {[%emt 0:00:29]} 38. Rxe5 {[%emt 0:00:22]} Qxf2 {[%emt 0:00:30]} 39. Qh8+ {[%emt 0:01:36]} Kg6 {[%emt 0:00:32]} 40. Qg8+ 1-0

[Event "44th Open Sitges 2018"]
[Site "Sitges"]
[Date "2018.07.28"]
[Round "8"]
[White "Mas Mestres, Jordi"]
[Black "Lobato, Lavin Alvaro"]
[Result "0-1"]
[ECO "A05"]
[WhiteElo "1825"]
[BlackElo "1923"]
[Annotator "NA"]
[PlyCount "102"]
[EventDate "2018.07.22"]
[EventType "swiss"]
[EventCountry "ESP"]
[SourceTitle "playchess.com"]
[Source "ChessBase"]
[SourceQuality "1"]
[TimeControl "40/5400+30:1800+30"]

1. e4 {[%emt 0:00:02]} c5 {[%emt 0:00:04]} 2. Nf3 {[%emt 0:00:19]} d6 {[%emt 0:00:03]} 3. d3 {[%emt 0:00:15]} Nc6 {[%emt 0:00:13]} 4. g3 {[%emt 0:00:28]} Nf6 {[%emt 0:00:09]} 5. Bg2 {[%emt 0:00:16]} g6 {[%emt 0:00:09]} 6. O-O {[%emt 0:00:39]} Bg7 {[%emt 0:00:06]} 7. Nbd2 {[%emt 0:00:40]} O-O {[%emt 0:00:19]} 8. Re1 {[%emt 0:02:28]} Qc7 {[%emt 0:03:55]} 9. Nf1 {[%emt 0:01:21]} Bg4 {[%emt 0:04:51]} 10. h3 {[%emt 0:02:55]} Bxf3 {[%emt 0:00:17]} 11. Bxf3 {[%emt 0:00:13]} Rab8 {[%emt 0:03:57]} 12. c3 {[%emt 0:06:28]} b5 {[%emt 0:05:24]} 13. Be3 {[%emt 0:08:21]} e5 {[%emt 0:07:36]} 14. Nh2 {[%emt 0:02:15]} b4 {[%emt 0:02:45]} 15. Ng4 {[%emt 0:03:46]} Nxg4 {[%emt 0:07:21]} 16. hxg4 {[%emt 0:00:06]} bxc3 {[%emt 0:00:11]} 17. bxc3 {[%emt 0:00:06]} Rb2 {[%emt 0:11:28]} 18. Kg2 {[%emt 0:06:56]} Qa5 {[%emt 0:10:58]} 19. Qc1 {[%emt 0:04:25]} Rxa2 {[%emt 0:08:50]} 20. Rxa2 {[%emt 0:00:22]} Qxa2 {[%emt 0:00:06]} 21. Bh6 {[%emt 0:00:07]} Bxh6 {[%emt 0:03:57]} 22. Qxh6 {[%emt 0:00:16]} f6 {[%emt 0:00:05]} 23. Rh1 {[%emt 0:01:04]} Rf7 {[%emt 0:04:25]} 24. g5 {[%emt 0:07:20]} Qe6 {[%emt 0:05:57]} 25. Bd1 {[%emt 0:05:52]} fxg5 {[%emt 0:03:40]} 26. Qxg5 {[%emt 0:00:17]} Qa2 {[%emt 0:01:33]} 27. Qe3 {[%emt 0:00:29]} a5 {[%emt 0:00:21]} 28. Bg4 {[%emt 0:07:07]} a4 {[%emt 0:01:26]} 29. Rf1 {[%emt 0:01:46]} Rb7 {[%emt 0:04:28]} 30. Qc1 {[%emt 0:01:04]} a3 {[%emt 0:02:24]} 31. Qa1 {[%emt 0:00:15]} Qxa1 {[%emt 0:01:28]} 32. Rxa1 {[%emt 0:00:15]} Ra7 {[%emt 0:00:10]} 33. Be6+ {[%emt 0:00:38]} Kf8 {[%emt 0:00:36]} 34. Kf3 {[%emt 0:00:37]} Ke7 {[%emt 0:01:03]} 35. Bd5 {[%emt 0:00:14]} Nb8 {[%emt 0:01:10]} 36. Ke3 {[%emt 0:00:13]} Nd7 {[%emt 0:00:51]} 37. Kd2 {[%emt 0:00:55]} Nb6 {[%emt 0:01:38]} 38. Bg8 {[%emt 0:00:31]} h5 {[%emt 0:00:35]} 39. Ra2 {[%emt 0:01:30]} Kf6 {[%emt 0:00:44]} 40. Kc2 {[%emt 0:00:42]} g5 {[%emt 0:00:57]} 41. Kd2 {[%emt 0:01:28]} Nc8 {[%emt 0:06:54]} 42. Ke3 {[%emt 0:00:22]} Ne7 {[%emt 0:00:13]} 43. Bc4 {[%emt 0:00:19]} h4 {[%emt 0:04:49]} 44. gxh4 {[%emt 0:00:36]} gxh4 {[%emt 0:00:10]} 45. f4 {[%emt 0:00:32]} exf4+ {[%emt 0:02:24]} 46. Kxf4 {[%emt 0:00:15]} Ng6+ {[%emt 0:01:22]} 47. Ke3 {[%emt 0:00:38]} Ne5 {[%emt 0:03:23]} 48. Bd5 {[%emt 0:00:18]} h3 {[%emt 0:01:02]} 49. d4 {[%emt 0:00:27]} cxd4+ {[%emt 0:02:24]} 50. cxd4 {[%emt 0:00:30]} Ng4+ {[%emt 0:00:14]} 51. Kf4 {[%emt 0:01:45]} h2 {[%emt 0:03:17]} 0-1

[Event "44th Open Sitges 2018"]
[Site "Sitges"]
[Date "2018.07.29"]
[Round "9"]
[White "Argandona Riveiro, Inigo"]
[Black "Gonzales, Jayson"]
[Result "1-0"]
[ECO "A55"]
[WhiteElo "2423"]
[BlackElo "2367"]
[Annotator "NA"]
[PlyCount "111"]
[EventDate "2018.07.22"]
[EventType "swiss"]
[EventCountry "ESP"]
[SourceTitle "playchess.com"]
[Source "ChessBase"]
[SourceQuality "1"]
[TimeControl "40/5400+30:1800+30"]

1. Nf3 {[%emt 0:00:03]} d6 {[%emt 0:04:14]} 2. d4 {[%emt 0:01:03]} Nf6 {[%emt 0:01:43]} 3. c4 {[%emt 0:00:29]} Nbd7 {[%emt 0:00:40]} 4. Nc3 {[%emt 0:01:04]} e5 {[%emt 0:00:20]} 5. e4 {[%emt 0:05:05]} c6 {[%emt 0:01:10]} 6. Be2 {[%emt 0:00:05]} Be7 {[%emt 0:01:08]} 7. O-O {[%emt 0:00:02]} O-O {[%emt 0:00:07]} 8. Re1 {[%emt 0:00:04]} a6 {[%emt 0:00:34]} 9. Bf1 {[%emt 0:06:17]} Qc7 $14 {[%emt 0:04:32]} 10. Rb1 {[%emt 0:07:12]} b5 {[%emt 0:03:18]} 11. cxb5 {[%emt 0:06:20]} cxb5 {[%emt 0:03:37]} 12. a3 {[%emt 0:01:55]} Bb7 {[%emt 0:00:52]} 13. g3 {[%emt 0:05:41]} Rfe8 {[%emt 0:01:22]} 14. Bg2 {[%emt 0:00:26]} Rac8 {[%emt 0:00:23]} 15. h3 {[%emt 0:02:06]} Qb8 {[%emt 0:01:30]} 16. Nh4 {[%emt 0:13:49]} Bf8 {[%emt 0:03:12]} 17. dxe5 {[%emt 0:06:03]} dxe5 {[%emt 0:00:41]} 18. Nf5 {[%emt 0:00:21]} Qa8 {[%emt 0:10:46]} 19. Qf3 {[%emt 0:06:21]} b4 {[%emt 0:05:31]} 20. axb4 {[%emt 0:00:17]} Bxb4 {[%emt 0:09:04]} 21. Bg5 {[%emt 0:02:10]} Re6 {[%emt 0:03:09]} 22. Rbd1 {[%emt 0:03:56]} Kf8 {[%emt 0:18:30]} 23. Re3 {[%emt 0:00:44]} Nb6 {[%emt 0:08:04]} 24. Bxf6 {[%emt 0:04:35]} Rxf6 {[%emt 0:00:14]} 25. Qg4 {[%emt 0:00:23]} Rg6 {[%emt 0:03:29]} 26. Qh4 {[%emt 0:00:01]} h6 {[%emt 0:01:53]} 27. Red3 {[%emt 0:08:50]} Kg8 {[%emt 0:00:11]} 28. Ne7+ {[%emt 0:00:23]} Bxe7 {[%emt 0:00:19]} 29. Qxe7 {[%emt 0:00:02]} Re6 {[%emt 0:04:04]} 30. Rd8+ {[%emt 0:00:28]} Kh7 {[%emt 0:00:02]} 31. Qxf7 {[%emt 0:01:25]} Rxd8 {[%emt 0:00:22]} 32. Rxd8 {[%emt 0:01:11]} Qxd8 {[%emt 0:00:27]} 33. Qxe6 {[%emt 0:00:02]} Qd4 {[%emt 0:00:46]} 34. Nd5 {[%emt 0:01:01]} Bxd5 {[%emt 0:06:32]} 35. exd5 {[%emt 0:00:02]} Nc4 {[%emt 0:00:05]} 36. Qf5+ {[%emt 0:07:27]} Kg8 {[%emt 0:00:59]} 37. Qc8+ {[%emt 0:00:08]} Kh7 {[%emt 0:00:29]} 38. Qf5+ {[%emt 0:00:06]} Kg8 {[%emt 0:00:12]} 39. b3 {[%emt 0:02:24]} Nd2 {[%emt 0:02:42]} 40. Qe6+ {[%emt 0:00:16]} Kh7 {[%emt 0:00:25]} 41. d6 {[%emt 0:01:12]} Qa1+ {[%emt 0:02:20]} 42. Kh2 {[%emt 0:00:02]} Nf1+ {[%emt 0:00:15]} 43. Bxf1 {[%emt 0:00:34]} Qxf1 {[%emt 0:00:02]} 44. Qf5+ {[%emt 0:03:09]} Kg8 {[%emt 0:00:10]} 45. Qc8+ {[%emt 0:07:01]} Kf7 {[%emt 0:04:28]} 46. Qf5+ {[%emt 0:00:13]} Kg8 {[%emt 0:00:08]} 47. d7 {[%emt 0:00:02]} Qd1 {[%emt 0:06:39]} 48. Qe6+ {[%emt 0:07:25]} Kh7 {[%emt 0:00:11]} 49. Qc6 {[%emt 0:00:32]} Qd3 {[%emt 0:03:19]} 50. h4 {[%emt 0:02:11]} h5 {[%emt 0:01:12]} 51. Qe6 {[%emt 0:03:41]} e4 {[%emt 0:06:45]} 52. Qf7 {[%emt 0:00:46]} Qd1 {[%emt 0:02:11]} 53. Qf5+ {[%emt 0:00:20]} Kg8 {[%emt 0:00:30]} 54. Qe6+ {[%emt 0:00:09]} Kh7 {[%emt 0:00:24]} 55. Qxe4+ {[%emt 0:00:05]} Kg8 {[%emt 0:00:30]} 56. Qe6+ 1-0

[Event "44th Open Sitges 2018"]
[Site "Sitges"]
[Date "2018.07.29"]
[Round "9"]
[White "Abhishek, Das"]
[Black "Anuj, Shrivatri"]
[Result "1/2-1/2"]
[ECO "C49"]
[WhiteElo "2325"]
[BlackElo "2094"]
[Annotator "NA"]
[PlyCount "58"]
[EventDate "2018.07.22"]
[EventType "swiss"]
[EventCountry "ESP"]
[SourceTitle "playchess.com"]
[Source "ChessBase"]
[SourceQuality "1"]
[TimeControl "40/5400+30:1800+30"]

1. e4 {[%emt 0:00:52]} e5 {[%emt 0:00:07]} 2. Nf3 {[%emt 0:00:04]} Nc6 {[%emt 0:00:25]} 3. Nc3 {[%emt 0:00:05]} Nf6 {[%emt 0:00:05]} 4. Bb5 {[%emt 0:00:03]} Bb4 {[%emt 0:00:06]} 5. O-O {[%emt 0:00:06]} O-O {[%emt 0:01:10]} 6. d3 {[%emt 0:00:04]} Bxc3 {[%emt 0:00:03]} 7. bxc3 {[%emt 0:00:06]} d6 {[%emt 0:00:03]} 8. Bg5 {[%emt 0:00:07]} Qe7 {[%emt 0:00:05]} 9. Re1 {[%emt 0:00:07]} a6 {[%emt 0:00:03]} 10. Bc4 {[%emt 0:01:22]} h6 {[%emt 0:00:25]} 11. Bh4 {[%emt 0:00:10]} Na5 {[%emt 0:00:06]} 12. Nd2 {[%emt 0:04:03]} Nxc4 {[%emt 0:16:14]} 13. Nxc4 {[%emt 0:00:07]} Qe6 {[%emt 0:07:44]} 14. Ne3 {[%emt 0:04:10]} g6 {[%emt 0:06:08]} 15. a4 {[%emt 0:06:43]} a5 {[%emt 0:06:56]} 16. Rb1 {[%emt 0:04:47]} b6 {[%emt 0:04:01]} 17. c4 {[%emt 0:06:42]} Bb7 {[%emt 0:06:31]} 18. Qf3 {[%emt 0:08:48]} Ne8 {[%emt 0:02:41]} 19. Nd5 {[%emt 0:19:08]} Bxd5 {[%emt 0:01:20]} 20. cxd5 {[%emt 0:04:26]} Qd7 {[%emt 0:00:24]} 21. Rb5 {[%emt 0:00:37]} g5 {[%emt 0:05:07]} 22. Bg3 {[%emt 0:01:16]} f5 {[%emt 0:00:24]} 23. exf5 {[%emt 0:00:22]} Qxf5 {[%emt 0:00:18]} 24. Qxf5 {[%emt 0:07:04]} Rxf5 {[%emt 0:15:35]} 25. Re4 Nf6 {[%emt 0:00:05]} 26. Rc4 Ne8 {[%emt 0:00:07]} 27. Re4 Rf7 28. Rc4 {[%emt 0:00:03]} Nf6 {[%emt 0:00:03]} 29. f3 h5 {[%emt 0:00:12]} 1/2-1/2

[Event "44th Open Sitges 2018"]
[Site "Sitges"]
[Date "2018.07.29"]
[Round "9"]
[White "Blasco Coll, Andreu"]
[Black "Pogorelov, Ruslan"]
[Result "1/2-1/2"]
[ECO "E46"]
[WhiteElo "2242"]
[BlackElo "2373"]
[Annotator "NA"]
[PlyCount "129"]
[EventDate "2018.07.22"]
[EventType "swiss"]
[EventCountry "ESP"]
[SourceTitle "playchess.com"]
[Source "ChessBase"]
[SourceQuality "1"]
[TimeControl "40/5400+30:1800+30"]

1. d4 {[%emt 0:00:05]} Nf6 {[%emt 0:00:06]} 2. c4 {[%emt 0:00:08]} e6 {[%emt 0:00:05]} 3. Nc3 {[%emt 0:00:12]} Bb4 {[%emt 0:00:08]} 4. e3 {[%emt 0:00:14]} O-O {[%emt 0:00:12]} 5. Nge2 {[%emt 0:00:14]} d5 {[%emt 0:00:08]} 6. a3 {[%emt 0:00:14]} Be7 {[%emt 0:00:06]} 7. cxd5 {[%emt 0:00:17]} exd5 {[%emt 0:00:08]} 8. Nf4 {[%emt 0:00:17]} c6 {[%emt 0:00:09]} 9. Bd3 {[%emt 0:00:25]} Re8 {[%emt 0:01:15]} 10. O-O {[%emt 0:00:35]} Bd6 {[%emt 0:01:12]} 11. Bd2 {[%emt 0:05:03]} b6 {[%emt 0:01:03]} 12. Rc1 {[%emt 0:02:58]} Bxf4 {[%emt 0:17:12]} 13. exf4 {[%emt 0:00:08]} Ba6 {[%emt 0:00:07]} 14. Bxa6 {[%emt 0:02:57]} Nxa6 {[%emt 0:00:09]} 15. Qa4 {[%emt 0:02:16]} Qc8 {[%emt 0:01:10]} 16. Rfe1 {[%emt 0:12:42]} Qb7 {[%emt 0:06:48]} 17. Re5 {[%emt 0:06:51]} Nd7 {[%emt 0:01:15]} 18. Re3 {[%emt 0:00:29]} Rxe3 {[%emt 0:00:33]} 19. Bxe3 {[%emt 0:00:16]} Re8 {[%emt 0:07:13]} 20. Na2 {[%emt 0:02:08]} c5 {[%emt 0:20:24]} 21. Nc3 {[%emt 0:03:17]} Nab8 {[%emt 0:01:45]} 22. Qb3 {[%emt 0:14:02]} c4 {[%emt 0:03:39]} 23. Qc2 {[%emt 0:02:37]} Nf6 {[%emt 0:02:44]} 24. f5 {[%emt 0:04:17]} h6 {[%emt 0:01:43]} 25. Qd1 {[%emt 0:05:03]} Qd7 {[%emt 0:02:53]} 26. Qf3 {[%emt 0:01:42]} Nc6 {[%emt 0:02:22]} 27. g4 {[%emt 0:01:59]} Ne4 {[%emt 0:01:47]} 28. Ne2 {[%emt 0:03:46]} b5 {[%emt 0:04:46]} 29. Nf4 {[%emt 0:02:30]} a5 {[%emt 0:04:47]} 30. Nh5 {[%emt 0:00:53]} b4 {[%emt 0:15:07]} 31. Kh1 {[%emt 0:04:53]} Qd6 {[%emt 0:03:53]} 32. a4 {[%emt 0:02:07]} b3 {[%emt 0:00:51]} 33. Rg1 {[%emt 0:04:31]} Qd8 {[%emt 0:00:44]} 34. f6 {[%emt 0:02:22]} Nxf6 {[%emt 0:00:34]} 35. g5 {[%emt 0:07:17]} Nxh5 {[%emt 0:00:43]} 36. Qxh5 {[%emt 0:00:21]} g6 {[%emt 0:00:43]} 37. gxh6 {[%emt 0:01:28]} Kh7 {[%emt 0:00:23]} 38. Qf3 {[%emt 0:00:17]} Qd7 {[%emt 0:00:47]} 39. Rg5 {[%emt 0:03:08]} Qe6 {[%emt 0:00:29]} 40. Bd2 {[%emt 0:02:48]} Nxd4 {[%emt 0:00:32]} 41. Qxd5 {[%emt 0:02:05]} Nf5 {[%emt 0:00:23]} 42. Qxe6 {[%emt 0:02:38]} Rxe6 {[%emt 0:00:15]} 43. Bxa5 {[%emt 0:01:28]} Ra6 {[%emt 0:00:41]} 44. Bd2 {[%emt 0:00:47]} Rxa4 {[%emt 0:00:21]} 45. Bc3 {[%emt 0:03:07]} Nh4 {[%emt 0:12:13]} 46. Rg1 {[%emt 0:03:48]} Kxh6 {[%emt 0:04:44]} 47. Rd1 {[%emt 0:02:37]} Ra6 {[%emt 0:00:58]} 48. h3 {[%emt 0:00:46]} f6 {[%emt 0:00:59]} 49. Rd8 {[%emt 0:02:00]} Nf5 {[%emt 0:07:49]} 50. Rd7 {[%emt 0:06:41]} Rc6 {[%emt 0:01:37]} 51. Kg2 {[%emt 0:01:38]} g5 {[%emt 0:00:27]} 52. Kf3 {[%emt 0:01:13]} Rd6 {[%emt 0:03:46]} 53. Rc7 {[%emt 0:03:33]} Rd3+ {[%emt 0:00:41]} 54. Kg2 {[%emt 0:01:20]} Nh4+ {[%emt 0:00:42]} 55. Kf1 {[%emt 0:01:23]} Rxh3 {[%emt 0:00:50]} 56. Bxf6 {[%emt 0:01:32]} Rf3 {[%emt 0:00:37]} 57. Bg7+ {[%emt 0:02:20]} Kg6 {[%emt 0:00:33]} 58. Bd4 {[%emt 0:00:29]} Rf4 {[%emt 0:00:54]} 59. Rxc4 {[%emt 0:00:45]} Nf5 {[%emt 0:00:51]} 60. Rc6+ {[%emt 0:00:21]} Kh5 {[%emt 0:00:15]} 61. Bc3 {[%emt 0:00:56]} Ng3+ {[%emt 0:00:32]} 62. Kg2 {[%emt 0:00:54]} Ne4 {[%emt 0:00:41]} 63. f3 {[%emt 0:00:36]} Nxc3 {[%emt 0:00:09]} 64. Rxc3 {[%emt 0:00:05]} Rb4 {[%emt 0:00:36]} 65. Kg3 {[%emt 0:00:39]} 1/2-1/2

[Event "44th Open Sitges 2018"]
[Site "Sitges"]
[Date "2018.07.29"]
[Round "9"]
[White "Mas Mestres, Jordi"]
[Black "Todts, Benny"]
[Result "0-1"]
[ECO "D00"]
[WhiteElo "1825"]
[BlackElo "1938"]
[Annotator "NA"]
[PlyCount "32"]
[EventDate "2018.07.22"]
[EventType "swiss"]
[EventCountry "ESP"]
[SourceTitle "playchess.com"]
[Source "ChessBase"]
[SourceQuality "1"]
[TimeControl "40/5400+30:1800+30"]

1. d4 {[%emt 0:00:03]} c5 {[%emt 0:00:06]} 2. c3 {[%emt 0:00:51]} d5 {[%emt 0:00:10]} 3. Bf4 {[%emt 0:00:36]} Nc6 {[%emt 0:00:27]} 4. e3 {[%emt 0:00:44]} Bf5 {[%emt 0:01:36]} 5. Nd2 {[%emt 0:00:42]} Nf6 {[%emt 0:05:04]} 6. Ngf3 {[%emt 0:06:36]} e6 {[%emt 0:02:04]} 7. Bb5 {[%emt 0:07:27]} Qb6 {[%emt 0:03:03]} 8. Qa4 {[%emt 0:03:43]} a6 {[%emt 0:02:36]} 9. Bxc6+ {[%emt 0:00:13]} bxc6 {[%emt 0:00:11]} 10. dxc5 {[%emt 0:04:48]} Bxc5 {[%emt 0:02:47]} 11. Nb3 {[%emt 0:00:31]} Bc2 {[%emt 0:17:37]} 12. Nfd4 {[%emt 0:02:43]} Bxd4 {[%emt 0:00:38]} 13. Qxd4 {[%emt 0:02:39]} Qb5 {[%emt 0:03:01]} 14. Qc5 {[%emt 0:04:33]} Bxb3 {[%emt 0:00:24]} 15. Qxb5 {[%emt 0:00:10]} axb5 {[%emt 0:00:06]} 16. O-O {[%emt 0:03:08]} Bxa2 {[%emt 0:01:52]} 0-1